bitfinex-derivatives/quotes_SOLF0:USTF0_20251002
["timestamp","ask_amount","ask_price","bid_price","bid_amount"]
[1759446930038,10.9213,233.52,233.44,11.1525]
[1759446930238,111.9213,233.52,233.44,11.1525]
[1759446930439,108.07,233.52,233.43,7.3]
[1759446930843,108.07,233.52,233.46,3.8523]
[1759446931043,108.07,233.52,233.43,7.3]
[1759446931545,108.07,233.52,233.46,7.52]
[1759446932644,108.07,233.52,233.46,11.3722]
[1759446933143,108.07,233.52,233.42,9.66334846]
[1759446933941,111.9214,233.52,233.44,3.8526]
[1759446934740,3.8516,233.51,233.44,3.8526]
[1759446940548,3.8516,233.51,233.44,11.3726]
[1759446944347,11.3817,233.5,233.44,11.3726]
[1759446948750,7.53,233.5,233.45,1.37266868]
[1759446948947,7.53,233.5,233.46,7.52]
[1759446949546,205.2,233.52,233.46,7.52]
[1759446950249,7.53,233.51,233.46,7.52]
[1759446950451,205.2,233.52,233.46,7.52]
[1759446950642,7.53,233.49,233.46,7.52]
[1759446951754,104.8514,233.52,233.45,5.22496868]
[1759446952055,209.0514,233.52,233.46,7.52]
[1759446953454,59.8896,233.6,233.5,7.52]
[1759446953655,114.65864889,233.58,233.5,7.52]
[1759446953854,2.92864889,233.57,233.5,7.52]
[1759446954059,2.92864889,233.56,233.5,7.52]
[1759446954253,2.92864889,233.55,233.49,8.89266868]
[1759446954453,7.53,233.56,233.5,1.37266868]
[1759446954656,7.53,233.54,233.5,8.89266868]
[1759446955653,7.53,233.6,233.52,1.37266868]
[1759446955854,7.53,233.62,233.58,7.52]
[1759446956661,7.53,233.66,233.59,1.37266868]
[1759446957365,3.8492,233.65,233.59,1.37266868]
[1759446958052,11.3795,233.64,233.58,7.52]
[1759446960959,7.53,233.59,233.51,7.52]
[1759446961151,1.37266868,233.6,233.47,4.766272]
[1759446961152,1.37266868,233.54,233.47,7.52]
[1759446961351,59.8808,233.64,233.47,7.52]
[1759446961352,3.8496,233.63,233.5,5.22426868]
[1759446961552,3.8496,233.63,233.52,1.37266868]
[1759446961553,7.27,233.6,233.52,1.37266868]
[1759446962659,3.8502,233.59,233.52,1.37266868]
[1759446966160,3.8502,233.59,233.51,7.52]
[1759446967163,5.22286868,233.59,233.51,7.52]
[1759446969462,5.22286868,233.59,233.45,28.14]
[1759446969463,7.27,233.6,233.53,7.64]
[1759446969660,3.8498,233.62,233.55,7.64]
[1759446970064,3.8498,233.62,233.56,1.37266868]
[1759446971063,84.03,233.63,233.57,7.64]
[1759446971268,3.6890561,233.65,233.59,7.64]
[1759446971769,7.27,233.66,233.6,9.01266868]
[1759446972770,16.39405059,233.68,233.6,9.01266868]
[1759446972974,7.27,233.69,233.62,1.37266868]
[1759446973269,7.27,233.69,233.63,7.64]
[1759446973470,104.16,233.71,233.64,1.37266868]
[1759446973667,104.16,233.71,233.63,7.64]
[1759446973871,104.16,233.71,233.63,9.01266868]
[1759446976268,104.16,233.71,233.65,1.37266868]
[1759446976472,104.16,233.71,233.66,7.64]
[1759446976672,104.16,233.71,233.65,1.37266868]
[1759446976872,104.16,233.71,233.65,9.01266868]
[1759446979676,3.8482,233.72,233.65,9.01266868]
[1759446980373,7.27,233.73,233.65,1.37266868]
[1759446981173,11.118,233.73,233.65,1.37266868]
[1759446982580,11.118,233.73,233.67,1.37266868]
[1759446982780,1.37266868,233.75,233.59,7.64]
[1759446982781,7.27,233.75,233.59,7.64]
[1759446982971,7.27,233.75,233.68,1.37266868]
[1759446983176,7.27,233.75,233.66,9.01266868]
[1759446983880,3.8478,233.74,233.66,9.01266868]
[1759446984980,7.56,233.73,233.66,9.01266868]
[1759446985580,11.4085,233.7,233.62,8.53266868]
[1759446988286,7.56,233.67,233.6,1.37266868]
[1759446988682,8.93266868,233.67,233.58,7.16]
[1759446988991,8.93266868,233.65,233.58,7.16]
[1759446989594,12.78196868,233.65,233.58,7.16]
[1759446991492,11.4093,233.65,233.58,7.16]
[1759446992196,11.4093,233.65,233.59,1.37266868]
[1759446992494,7.27,233.61,233.52,1.37266868]
[1759446992686,7.27,233.61,233.5,7.64]
[1759446992687,7.27,233.59,233.5,9.01266868]
[1759446993086,3.8503,233.58,233.5,12.86426868]
[1759446993694,3.8503,233.58,233.52,1.37266868]
[1759446996993,3.8503,233.58,233.5,11.4916]
[1759446997195,7.27,233.55,233.47,1.37266868]
[1759446999993,7.27,233.55,233.5,7.64]
[1759447000198,11.1203,233.59,233.52,7.64]
[1759447001189,11.1203,233.59,233.49,104.46]
[1759447001395,7.27,233.58,233.5,1.37266868]
[1759447001996,7.27,233.58,233.5,12.86426868]
[1759447002702,7.27,233.58,233.52,1.37266868]
[1759447004098,7.27,233.58,233.53,3.8511]
[1759447004405,7.27,233.59,233.53,11.4911]
[1759447005405,7.27,233.59,233.53,7.64]
[1759447006201,7.27,233.59,233.52,1.37266868]
[1759447008201,7.27,233.59,233.51,3.8515]
[1759447010095,7.27,233.59,233.52,11.4912]
[1759447014407,3.8504,233.58,233.52,7.64]
[1759447022714,7.27,233.59,233.52,11.4912]
[1759447023010,7.27,233.59,233.52,7.64]
[1759447023707,7.27,233.59,233.53,3.851]
[1759447026912,7.27,233.59,233.54,3.8509]
[1759447027310,7.27,233.59,233.55,7.36]
[1759447027508,7.27,233.59,233.54,3.8509]
[1759447027914,7.27,233.59,233.55,7.36]
[1759447028115,16.83478265,233.62,233.55,7.36]
[1759447028316,10.8899,233.61,233.55,7.36]
[1759447030212,10.8899,233.61,233.54,3.8509]
[1759447030414,3.8501,233.6,233.54,3.8509]
[1759447030616,7.04,233.59,233.49,4.766272]
[1759447030915,7.04,233.57,233.47,7.36]
[1759447031114,2.14318442,233.58,233.47,7.36]
[1759447031315,7.04,233.57,233.49,7.36]
[1759447031817,7.04,233.57,233.45,7.36]
[1759447032209,3.8514,233.52,233.45,7.36]
[1759447032409,7.04,233.51,233.45,7.36]
[1759447033020,7.04,233.51,233.45,11.2125]
[1759447034719,7.04,233.56,233.46,7.36]
[1759447034920,7.04,233.56,233.49,7.36]
[1759447035318,10.89,233.6,233.49,7.36]
[1759447036613,10.89,233.6,233.52,11.2112]
[1759447040520,7.04,233.65,233.53,7.36]
[1759447040714,7.04,233.65,233.56,7.36]
[1759447041124,7.04,233.65,233.58,3.8502]
[1759447042523,7.04,233.65,233.56,7.36]
[1759447042720,3.8494,233.64,233.56,7.36]
[1759447042920,7.04,233.63,233.56,7.36]
[1759447047123,3.8492,233.65,233.59,7.34]
[1759447048226,20.58120656,233.67,233.59,7.34]
[1759447049229,112.5383,233.71,233.63,7.34]
[1759447049428,7.69,233.71,233.63,7.34]
[1759447049926,3.8475,233.76,233.65,7.34]
[1759447050127,7.69,233.77,233.65,7.34]
[1759447050725,20.49619035,233.77,233.65,7.34]
[1759447050925,20.49619035,233.77,233.67,3.8488]
[1759447051124,20.49619035,233.77,233.68,7.34]
[1759447051524,3.8474,233.76,233.68,7.34]
[1759447053031,7.54,233.75,233.68,7.34]
[1759447057934,3.8477,233.74,233.68,7.34]
[1759447058536,7.54,233.75,233.68,7.34]
[1759447061233,11.3877,233.75,233.68,7.34]
[1759447061431,2.14318442,233.73,233.59,7.12]
[1759447061627,3.8484,233.7,233.59,7.12]
[1759447062533,3.8484,233.7,233.6,3.8498]
[1759447062835,3.8484,233.7,233.61,7.12]
[1759447063240,3.8484,233.7,233.61,10.9697]
[1759447065737,7.54,233.69,233.61,10.9697]
[1759447067442,3.848,233.73,233.63,7.12]
[1759447068347,3.848,233.73,233.66,8.48990285]
[1759447068644,3.848,233.73,233.66,7.12]
[1759447069746,7.54,233.74,233.66,10.9689]
[1759447069945,7.54,233.74,233.67,1.36990285]
[1759447071150,11.3878,233.74,233.67,1.36990285]
[1759447073850,7.54,233.74,233.67,1.36990285]
[1759447074748,3.848,233.73,233.66,7.12]
[1759447076154,3.8482,233.72,233.66,7.12]
[1759447077061,11.3877,233.74,233.67,1.36990285]
[1759447077255,11.3877,233.74,233.66,7.12]
[1759447077558,1.36990285,233.73,233.66,7.12]
[1759447078554,3.8481,233.72,233.66,7.12]
[1759447080256,11.3881,233.72,233.66,7.12]
[1759447080754,7.54,233.72,233.66,7.12]
[1759447080961,7.54,233.7,233.66,7.12]
[1759447081169,1.36990285,233.67,233.61,7.12]
[1759447081457,1.36990285,233.7,233.62,1.36990285]
[1759447081658,1.36990285,233.7,233.64,3.8493]
[1759447081961,7.07,233.72,233.65,7.12]
[1759447083660,3.8483,233.71,233.65,7.12]
[1759447086860,7.07,233.76,233.67,1.36990285]
[1759447087068,7.07,233.76,233.68,7.12]
[1759447087465,1.36990285,233.74,233.68,7.12]
[1759447087661,7.07,233.73,233.68,7.12]
[1759447087863,8.43990285,233.74,233.68,7.12]
[1759447089169,7.07,233.74,233.68,7.12]
[1759447092366,10.9178,233.74,233.68,7.12]
[1759447094670,5.21730285,233.76,233.68,7.12]
[1759447095164,3.8474,233.76,233.68,7.12]
[1759447095570,3.8474,233.76,233.68,10.9687]
[1759447096165,3.8474,233.76,233.69,7.12]
[1759447097569,3.8474,233.76,233.69,10.9684]
[1759447098170,10.9176,233.75,233.69,7.12]
[1759447098364,8.43990285,233.75,233.69,7.12]
[1759447098565,8.43990285,233.75,233.64,1.36990285]
[1759447098759,8.43990285,233.75,233.65,7.12]
[1759447099169,3.8478,233.74,233.66,3.8489]
[1759447099372,3.8478,233.74,233.65,7.12]
[1759447100770,7.07,233.75,233.68,7.12]
[1759447102771,10.9177,233.75,233.68,7.12]
[1759447105374,10.9177,233.75,233.68,10.9686]
[1759447105570,7.07,233.75,233.68,10.9686]
[1759447107575,7.07,233.75,233.7,7.23]
[1759447107976,7.07,233.75,233.69,11.0784]
[1759447109272,10.9176,233.75,233.69,7.23]
[1759447109473,7.07,233.75,233.69,7.23]
[1759447110180,10.9176,233.75,233.69,7.23]
[1759447112484,7.0,233.73,233.64,7.6]
[1759447112879,3.8484,233.7,233.64,7.6]
[1759447113076,10.8484,233.7,233.64,7.6]
[1759447117288,7.0,233.68,233.61,1.36990285]
[1759447118183,7.0,233.68,233.62,7.6]
[1759447118490,10.8482,233.72,233.65,7.6]
[1759447118697,101.0,233.73,233.68,7.6]
[1759447118888,101.0,233.73,233.67,8.96990285]
[1759447119384,101.0,233.73,233.67,12.81860285]
[1759447119682,108.1078,233.74,233.67,12.81860285]
[1759447120991,7.0,233.73,233.67,12.81860285]
[1759447122493,10.848,233.73,233.67,8.96990285]
[1759447122694,7.0,233.72,233.65,3.8491]
[1759447124495,10.8482,233.72,233.65,3.8491]
[1759447125395,1.36990285,233.72,233.63,3.8495]
[1759447125693,7.0,233.71,233.63,3.8495]
[1759447126699,7.0,233.71,233.64,12.81910285]
[1759447128297,7.0,233.71,233.64,11.4492]
[1759447131799,7.0,233.71,233.65,3.8491]
[1759447132102,7.0,233.71,233.65,7.6]
[1759447133599,7.0,233.71,233.67,7.6]
[1759447133800,3.8478,233.74,233.67,7.6]
[1759447141809,7.0,233.75,233.67,7.6]
[1759447142405,7.62,233.71,233.63,7.5]
[1759447143608,7.62,233.67,233.62,7.5]
[1759447143810,7.62,233.67,233.61,3.8497]
[1759447144010,7.62,233.67,233.61,11.3497]
[1759447145413,7.62,233.71,233.63,7.5]
[1759447145907,108.62,233.74,233.65,7.5]
[1759447146112,7.62,233.74,233.65,7.5]
[1759447147608,11.4677,233.74,233.66,3.8489]
[1759447148917,11.4677,233.74,233.68,7.5]
[1759447153226,3.848,233.72,233.68,7.5]
[1759447153618,7.62,233.71,233.64,3.8492]
[1759447153921,3.8477,233.74,233.67,7.5]
[1759447156125,7.62,233.75,233.67,7.5]
[1759447157630,7.62,233.75,233.69,3.8484]
[1759447158930,7.62,233.75,233.67,11.3488]
[1759447159832,11.4676,233.75,233.67,11.3488]
[1759447163128,3.8478,233.74,233.67,11.3488]
[1759447164136,7.62,233.73,233.67,7.5]
[1759447164833,7.03,233.74,233.62,11.97116372]
[1759447165031,104.18,233.73,233.62,7.21]
[1759447165244,7.03,233.72,233.62,7.21]
[1759447165936,7.03,233.7,233.62,7.21]
[1759447166136,2.96608311,233.69,233.62,7.21]
[1759447166435,7.03,233.7,233.62,7.21]
[1759447166636,3.8488,233.68,233.62,7.21]
[1759447167238,10.8788,233.68,233.62,7.21]
[1759447168034,2.96577905,233.67,233.62,7.21]
[1759447168237,7.03,233.66,233.62,7.21]
[1759447169140,7.03,233.66,233.59,3.8501]
[1759447169141,7.03,233.66,233.6,7.21]
[1759447170440,7.03,233.7,233.62,7.21]
[1759447170741,2.96386746,233.69,233.62,7.21]
[1759447170933,7.03,233.7,233.62,7.21]
[1759447171134,2.96388368,233.69,233.62,11.0595]
[1759447171336,7.03,233.7,233.62,11.0595]
[1759447171538,2.96374927,233.69,233.62,11.0595]
[1759447171839,7.03,233.7,233.62,11.0595]
[1759447172133,2.96374801,233.69,233.62,11.0595]
[1759447172328,10.8785,233.7,233.62,11.0595]
[1759447172532,2.96361909,233.69,233.62,11.0595]
[1759447172741,10.8785,233.7,233.62,11.0595]
[1759447172929,2.96360673,233.69,233.62,11.0595]
[1759447173133,10.8785,233.7,233.62,11.0595]
[1759447173330,2.96345315,233.69,233.62,11.0595]
[1759447173532,10.8785,233.7,233.62,11.0595]
[1759447173733,2.96345315,233.69,233.62,11.0595]
[1759447173933,2.96345315,233.69,233.62,7.21]
[1759447173934,3.8486,233.69,233.62,7.21]
[1759447180147,7.03,233.7,233.62,11.0596]
[1759447180335,7.03,233.7,233.63,7.09]
[1759447180538,3.848,233.72,233.63,7.09]
[1759447180740,101.0,233.73,233.63,7.09]
[1759447180940,2.96205299,233.72,233.63,7.09]
[1759447181149,101.0,233.73,233.63,7.09]
[1759447181349,2.96212567,233.72,233.63,7.09]
[1759447181647,2.96212567,233.72,233.59,59.8906]
[1759447181648,101.0,233.73,233.66,7.09]
[1759447181842,10.31205886,233.72,233.66,7.09]
[1759447182044,7.35,233.7,233.64,3.8492]
[1759447182347,2.96205886,233.72,233.65,7.09]
[1759447182545,108.35,233.73,233.65,7.09]
[1759447182843,2.96222333,233.72,233.65,7.09]
[1759447183044,11.1979,233.73,233.67,7.09]
[1759447183241,3.00653403,233.72,233.66,3.8489]
[1759447183444,11.1979,233.73,233.67,7.09]
[1759447183745,3.00659576,233.72,233.66,7.09]
[1759447183945,7.35,233.73,233.66,7.09]
[1759447184147,3.00656321,233.72,233.66,7.09]
[1759447184346,7.35,233.73,233.66,7.09]
[1759447184548,3.00656549,233.72,233.68,3.8486]
[1759447184848,7.35,233.74,233.68,3.8486]
[1759447185146,7.35,233.72,233.68,10.9386]
[1759447185751,7.35,233.72,233.68,7.09]
[1759447185941,7.35,233.73,233.68,7.09]
[1759447186147,10.35659818,233.72,233.68,7.09]
[1759447186447,7.35,233.73,233.68,7.09]
[1759447186749,10.35658421,233.72,233.68,7.09]
[1759447186951,7.35,233.72,233.68,7.09]
[1759447189652,3.8478,233.74,233.68,7.09]
[1759447189852,7.35,233.72,233.68,7.09]
[1759447192646,7.35,233.73,233.68,7.09]
[1759447192852,7.35,233.71,233.68,7.09]
[1759447193052,7.35,233.72,233.66,5.21893305]
[1759447193254,7.35,233.7,233.67,7.09]
[1759447193647,7.35,233.7,233.66,5.21893305]
[1759447193845,3.8479,233.73,233.66,5.21893305]
[1759447194050,3.00704428,233.72,233.66,5.21893305]
[1759447194252,3.00704428,233.71,233.66,5.21893305]
[1759447194454,11.1979,233.73,233.67,7.09]
[1759447194755,3.00705984,233.72,233.67,7.09]
[1759447195055,3.00705984,233.71,233.66,5.21893305]
[1759447195255,7.35,233.72,233.66,5.21893305]
[1759447195457,7.35,233.7,233.63,12.30933305]
[1759447196259,7.35,233.7,233.64,3.8492]
[1759447197252,7.35,233.73,233.65,1.36993305]
[1759447197460,3.00719938,233.72,233.66,7.09]
[1759447197752,5.21763305,233.74,233.65,1.36993305]
[1759447198055,10.35708087,233.73,233.66,7.09]
[1759447198256,3.00708087,233.72,233.66,7.09]
[1759447198561,11.1979,233.73,233.66,10.9389]
[1759447198856,3.00711472,233.72,233.66,10.9389]
[1759447199154,11.1979,233.73,233.66,10.9389]
[1759447199355,3.00710316,233.72,233.66,10.9389]
[1759447199550,11.1979,233.73,233.66,10.9389]
[1759447199750,3.00710316,233.72,233.66,10.9389]
[1759447199950,11.1979,233.73,233.66,10.9389]
[1759447200250,3.00710316,233.72,233.66,10.9389]
[1759447200452,7.35,233.73,233.67,3.8487]
[1759447200647,24.08586615,233.77,233.68,7.09]
[1759447200858,3.00670907,233.76,233.71,7.09]
[1759447201064,3.00670907,233.75,233.73,7.09]
[1759447201251,3.64332812,233.77,233.72,1.36993305]
[1759447201556,3.00654707,233.76,233.72,1.36993305]
[1759447201756,3.00654707,233.75,233.73,7.08]
[1759447201958,10.86332812,233.77,233.73,7.08]
[1759447202254,3.00628753,233.76,233.73,7.08]
[1759447202451,3.00628753,233.75,233.72,5.21793305]
[1759447202754,10.86332812,233.77,233.72,5.21793305]
[1759447202755,10.86332812,233.77,233.73,7.08]
[1759447202955,3.00608578,233.76,233.73,7.08]
[1759447203161,3.00608578,233.75,233.72,5.21793305]
[1759447203459,10.86332812,233.77,233.73,7.08]
[1759447203647,3.00589055,233.76,233.73,7.08]
[1759447203848,3.00589055,233.75,233.73,7.08]
[1759447204052,10.86332812,233.77,233.73,7.08]
[1759447204253,3.00589055,233.76,233.72,5.21793305]
[1759447204453,3.00589055,233.75,233.73,7.08]
[1759447204653,3.64332812,233.77,233.73,7.08]
[1759447204654,3.64332812,233.77,233.74,7.08]
[1759447204857,3.64332812,233.77,233.73,3.8478]
[1759447205062,3.64332812,233.77,233.74,7.08]
[1759447205759,3.64332812,233.77,233.73,3.8478]
[1759447206562,3.64332812,233.77,233.74,7.08]
[1759447207365,3.64332812,233.77,233.75,7.08]
[1759447208568,10.22276566,233.79,233.75,7.08]
[1759447208865,7.22,233.79,233.75,7.08]
[1759447210266,8.58993305,233.77,233.68,1.36993305]
[1759447210462,7.22,233.77,233.7,1.36993305]
[1759447210662,8.58993305,233.8,233.73,7.08]
[1759447210863,3.00215225,233.79,233.73,7.08]
[1759447211065,3.00215225,233.78,233.72,1.36993305]
[1759447211262,7.22,233.8,233.73,7.08]
[1759447211462,3.00153626,233.79,233.73,7.08]
[1759447211664,7.22,233.8,233.73,7.08]
[1759447211864,3.00153626,233.79,233.73,7.08]
[1759447212066,8.58993305,233.8,233.73,7.08]
[1759447212364,3.00149089,233.79,233.73,7.08]
[1759447212663,8.58993305,233.8,233.73,10.9277]
[1759447212863,3.0011951,233.79,233.73,10.9277]
[1759447213065,8.58993305,233.8,233.73,10.9277]
[1759447213361,2.99669808,233.79,233.73,10.9277]
[1759447213562,8.58993305,233.8,233.73,10.9277]
[1759447213755,2.9964443,233.79,233.73,10.9277]
[1759447213957,8.58993305,233.8,233.73,10.9277]
[1759447214157,2.9964443,233.79,233.73,10.9277]
[1759447214356,8.58993305,233.8,233.73,10.9277]
[1759447214563,2.99648005,233.79,233.73,10.9277]
[1759447214764,8.58993305,233.8,233.73,10.9277]
[1759447214962,2.99648005,233.79,233.73,10.9277]
[1759447215160,8.58993305,233.8,233.73,10.9277]
[1759447215360,2.99658786,233.79,233.73,10.9277]
[1759447215560,8.58993305,233.8,233.73,10.9277]
[1759447215759,2.99658786,233.79,233.73,10.9277]
[1759447215964,8.58993305,233.8,233.73,10.9277]
[1759447216162,2.99658786,233.79,233.73,10.9277]
[1759447216362,8.58993305,233.8,233.73,10.9277]
[1759447216561,10.21649349,233.79,233.75,7.08]
[1759447216757,16.78969116,233.82,233.72,1.36993305]
[1759447216961,2.99647727,233.81,233.73,7.08]
[1759447217165,2.99647727,233.8,233.73,7.08]
[1759447217464,3.8465,233.82,233.73,7.08]
[1759447217663,2.99633278,233.81,233.75,3.8474]
[1759447217962,2.99633278,233.8,233.73,7.08]
[1759447218164,11.0666,233.81,233.73,7.08]
[1759447218362,2.99626112,233.8,233.73,7.08]
[1759447218564,11.0666,233.81,233.73,7.08]
[1759447218862,2.99626112,233.8,233.74,3.8475]
[1759447219056,11.0666,233.81,233.74,3.8475]
[1759447219256,7.22,233.79,233.73,7.08]
[1759447219455,7.22,233.79,233.59,59.8914]
[1759447219456,1.36993305,233.77,233.7,7.08]
[1759447219664,8.58993305,233.77,233.7,7.08]
[1759447219864,8.58993305,233.77,233.7,10.9283]
[1759447220062,9.60442912,234.03,233.77,25.77]
[1759447220257,33.86014321,234.34,234.02,1.36993305]
[1759447220465,7.22,234.23,234.14,1.36993305]
[1759447220760,7.22,234.21,234.05,4.72575648]
[1759447220966,1.72,234.07,234.05,4.72575648]
[1759447221266,15.06288606,234.06,234.04,1.36993305]
[1759447221461,15.06288606,234.06,234.05,4.05953707]
[1759447221664,90.68288606,234.06,234.05,4.05953707]
[1759447221858,15.06288606,234.06,234.05,4.05953707]
[1759447222357,15.06288606,234.06,234.01,1.36993305]
[1759447222555,15.06288606,234.04,234.01,1.36993305]
[1759447222965,3.8416,234.12,234.01,1.36993305]
[1759447223154,7.22,234.06,233.97,1.36993305]
[1759447223359,15.06288606,234.01,233.98,7.08]
[1759447224261,7.64,234.11,234.0,1.36993305]
[1759447224465,15.06288606,234.05,234.03,8.71993305]
[1759447224654,15.06288606,234.03,233.98,7.35]
[1759447224860,12.88982076,234.25,233.98,7.35]
[1759447224861,7.64,234.23,234.03,7.35]
[1759447225161,53.46,234.22,234.13,7.35]
[1759447225358,4.5828411,234.24,234.21,1.36993305]
[1759447225560,7.64,234.36,234.23,1.57423563]
[1759447225868,15.06288606,234.26,234.23,1.36993305]
[1759447226159,7.64,234.47,234.25,7.35]
[1759447226361,7.64,234.47,234.2,90.0753]
[1759447226362,7.64,234.47,234.36,7.35]
[1759447226565,9.00993305,234.53,234.43,1.36993305]
[1759447226760,7.64,234.53,234.43,6.15707673]
[1759447226956,15.06288606,234.44,234.43,1.36993305]
[1759447227263,9.67653836,234.59,234.52,4.78714368]
[1759447227562,9.67653836,234.59,234.36,59.6942]
[1759447227563,9.67653836,234.59,234.58,1.36993305]
[1759447227761,9.67653836,234.59,234.58,6.15707673]
[1759447228060,17.00942442,234.59,234.55,1.36993305]
[1759447228266,9.67653836,234.59,234.58,4.78714368]
[1759447228865,17.00942442,234.59,234.44,7.35]
[1759447229067,59.6458,234.56,234.44,12.13714368]
[1759447229365,7.33288606,234.45,234.44,4.78714368]
[1759447229763,59.6474,234.55,234.44,4.78714368]
[1759447229764,7.64,234.51,234.45,0.17914]
[1759447229960,111.96,234.5,234.45,4.96628368]
[1759447230156,111.94,234.51,234.46,4.78714368]
[1759447230361,111.94,234.51,234.45,0.17914]
[1759447230564,7.33288606,234.46,234.45,0.17914]
[1759447232065,14.97288606,234.46,234.45,0.17914]
[1759447232261,7.33288606,234.46,234.44,4.78714368]
[1759447232462,14.97288606,234.45,234.44,4.78714368]
[1759447232768,7.33288606,234.45,234.44,4.78714368]
[1759447232969,3.29514956,234.5,234.44,9.57428736]
[1759447233163,7.33288606,234.48,234.45,4.78714368]
[1759447233668,7.33288606,234.48,234.46,4.78714368]
[1759447233868,0.02724217,234.5,234.47,4.78714368]
[1759447234063,0.02724217,234.5,234.49,4.78714368]
[1759447234868,7.36012823,234.5,234.44,4.78714368]
[1759447235069,0.02724217,234.5,234.45,4.78714368]
[1759447235269,7.36012823,234.5,234.45,4.78714368]
[1759447235471,7.36012823,234.5,234.46,4.78714368]
[1759447235669,0.02724217,234.5,234.46,7.36]
[1759447235966,7.64,234.47,234.44,4.58194641]
[1759447236163,14.97288606,234.45,234.44,4.58194641]
[1759447237265,7.33288606,234.45,234.44,4.58194641]
[1759447237466,111.88,234.46,234.44,9.16389282]
[1759447237670,7.33288606,234.45,234.44,4.58194641]
[1759447238067,111.88,234.46,234.44,9.16389282]
[1759447238267,7.33288606,234.45,234.44,4.58194641]
[1759447238567,14.97288606,234.45,234.44,4.58194641]
[1759447239466,7.33288606,234.45,234.44,9.16389282]
[1759447239672,119.36724217,234.5,234.44,9.16389282]
[1759447239873,119.36724217,234.5,234.45,4.58194641]
[1759447240063,7.66724217,234.5,234.45,4.58194641]
[1759447240268,119.01288606,234.49,234.46,4.58194641]
[1759447240471,119.01288606,234.49,234.45,4.58194641]
[1759447240962,111.68,234.49,234.46,4.58194641]
[1759447241162,0.02724217,234.5,234.48,4.58194641]
[1759447241368,0.02724217,234.5,234.49,11.94194641]
[1759447242467,0.02724217,234.5,234.42,3.26790739]
[1759447242674,0.02724217,234.5,234.43,7.36]
[1759447242870,7.36012823,234.5,234.43,11.94194641]
[1759447243066,0.02724217,234.5,234.49,4.58194641]
[1759447244770,7.36012823,234.5,234.49,4.58194641]
[1759447245976,0.02724217,234.5,234.49,12.36194641]
[1759447246774,0.02724217,234.5,234.49,11.94194641]
[1759447247368,9.67653836,234.59,234.49,7.78]
[1759447247579,7.33288606,234.57,234.5,4.55470424]
[1759447247972,7.33288606,234.56,234.51,11.91470424]
[1759447248172,7.33288606,234.56,234.46,4.55470424]
[1759447248373,9.67653836,234.59,234.55,4.55470424]
[1759447248671,7.33288606,234.57,234.47,4.55470424]
[1759447248968,7.33288606,234.57,234.46,7.36]
[1759447248969,7.33288606,234.56,234.48,15.4751581]
[1759447249167,7.33288606,234.56,234.49,3.56045386]
[1759447249373,9.67653836,234.59,234.49,3.56045386]
[1759447249374,13.51043836,234.59,234.55,4.55470424]
[1759447249673,13.51043836,234.59,234.48,7.36]
[1759447249674,7.33288606,234.56,234.5,4.55470424]
[1759447249880,7.33288606,234.56,234.55,4.55470424]
[1759447250083,7.64,234.58,234.55,4.55470424]
[1759447250374,14.97288606,234.56,234.43,7.36]
[1759447250579,7.33288606,234.53,234.46,4.55470424]
[1759447250772,7.33288606,234.53,234.47,3.56295853]
[1759447251080,7.33288606,234.52,234.48,7.36]